bitfinex/quotes_BTCUSD_20250105
["timestamp","ask_amount","ask_price","bid_price","bid_amount"]
[1736087578448,0.66277,97482.0,97481.0,1.77420019]
[1736087578856,0.66677,97482.0,97481.0,1.77420019]
[1736087579090,0.66277,97482.0,97481.0,1.77420019]
[1736087579504,0.66577,97482.0,97481.0,1.77420019]
[1736087580376,0.66277,97482.0,97481.0,1.77420019]
[1736087582001,0.66577,97482.0,97481.0,1.77420019]
[1736087582195,0.66577,97482.0,97481.0,0.0575254]
[1736087582430,0.66277,97482.0,97481.0,0.0648854]
[1736087582637,0.66477,97482.0,97481.0,0.0648854]
[1736087583065,0.66277,97482.0,97481.0,0.0648854]
[1736087583265,0.66677,97482.0,97481.0,0.0648854]
[1736087583755,0.66277,97482.0,97481.0,0.0648854]
[1736087584348,0.66277,97482.0,97481.0,0.27420019]
[1736087584974,0.66277,97482.0,97481.0,1.77420019]
[1736087585366,0.66677,97482.0,97481.0,1.77420019]
[1736087585569,0.51277,97482.0,97481.0,1.77420019]
[1736087585974,0.51577,97482.0,97481.0,1.77420019]
[1736087586221,0.51277,97482.0,97481.0,1.77420019]
[1736087586555,0.51377,97482.0,97481.0,1.77420019]
[1736087587393,0.51377,97482.0,97481.0,1.91018337]
[1736087587594,0.48810401,97482.0,97481.0,1.91018337]
[1736087587806,0.41000401,97482.0,97481.0,1.91018337]
[1736087588577,0.28190401,97482.0,97481.0,2.01018337]
[1736087588770,0.184582,97518.0,97510.0,0.07701479]
[1736087588979,0.15,97517.0,97510.0,0.27092111]
[1736087589479,0.184576,97521.0,97510.0,0.27092111]
[1736087589709,0.184576,97521.0,97510.0,1.77092111]
[1736087589889,0.15,97520.0,97510.0,1.77092111]
[1736087590878,0.0011708,97511.0,97510.0,1.77292111]
[1736087591080,0.0011708,97511.0,97510.0,1.77492111]
[1736087592338,0.0001708,97511.0,97510.0,1.68100111]
[1736087592556,0.0001708,97511.0,97510.0,1.58433479]
[1736087592807,0.0011708,97511.0,97510.0,1.59233479]
[1736087593013,0.0001708,97511.0,97510.0,1.58101479]
[1736087593160,0.0001708,97511.0,97510.0,1.58433479]
[1736087593528,0.0011708,97511.0,97510.0,1.59033479]
[1736087593733,0.0001708,97511.0,97510.0,1.58633479]
[1736087593938,0.0001708,97511.0,97510.0,1.59033479]
[1736087594146,0.0011708,97511.0,97510.0,1.69232111]
[1736087594357,0.0001708,97511.0,97510.0,1.68832111]
[1736087595005,0.0001708,97511.0,97510.0,1.69032111]
[1736087595973,0.0001708,97511.0,97510.0,0.19032111]
[1736087596402,0.0001708,97511.0,97510.0,1.68832111]
[1736087596604,0.0001708,97511.0,97510.0,1.69132111]
[1736087596850,0.0001708,97511.0,97510.0,1.69332111]
[1736087597055,0.0001708,97511.0,97510.0,1.69032111]
[1736087597268,0.0001708,97511.0,97510.0,1.58433479]
[1736087597489,0.0011708,97511.0,97510.0,1.58733479]
[1736087597904,0.0001708,97511.0,97510.0,1.68832111]
[1736087598322,0.0011708,97511.0,97510.0,1.69332111]
[1736087598521,0.0001708,97511.0,97510.0,1.69032111]
[1736087598731,0.0001708,97511.0,97510.0,1.58633479]
[1736087599389,0.0001708,97511.0,97510.0,1.57901479]
[1736087599786,0.0001708,97511.0,97510.0,1.58633479]
[1736087600049,0.0011708,97511.0,97510.0,1.58433479]
[1736087600456,0.0001708,97511.0,97510.0,1.58633479]
[1736087600883,0.0001708,97511.0,97510.0,1.58733479]
[1736087601099,0.0001708,97511.0,97510.0,1.58533479]
[1736087601320,0.0001708,97511.0,97510.0,1.58633479]
[1736087603183,0.0001708,97511.0,97510.0,1.77122111]
[1736087603391,0.0001708,97511.0,97510.0,1.81992111]
[1736087603819,0.0001708,97511.0,97510.0,1.91992111]
[1736087604658,0.0001708,97531.0,97530.0,0.15791479]
[1736087604866,0.00031941,97531.0,97530.0,0.26190111]
[1736087605290,0.00031941,97531.0,97530.0,0.07701479]
[1736087605498,0.00031941,97531.0,97530.0,0.36555911]
[1736087606591,0.00031941,97531.0,97530.0,0.41425911]
[1736087606794,0.00031941,97531.0,97530.0,0.49515911]
[1736087607291,0.00031941,97531.0,97530.0,0.50015911]
[1736087607442,0.00031941,97531.0,97530.0,2.00015911]
[1736087607664,0.00031941,97531.0,97530.0,1.99515911]
[1736087608085,0.00031941,97531.0,97530.0,2.00115911]
[1736087608282,0.00031941,97531.0,97530.0,2.00847911]
[1736087608441,0.00031941,97531.0,97530.0,2.00115911]
[1736087608646,0.00031941,97531.0,97530.0,2.00847911]
[1736087608847,0.00131941,97531.0,97530.0,2.01747911]
[1736087609043,0.00031941,97531.0,97530.0,2.00847911]
[1736087609290,0.00031941,97531.0,97530.0,2.00247911]
[1736087609499,0.00131941,97531.0,97530.0,2.01147911]
[1736087609701,0.00131941,97531.0,97530.0,2.01747911]
[1736087610300,0.00131941,97531.0,97530.0,2.01147911]
[1736087610933,0.00131941,97531.0,97530.0,2.00415911]
[1736087611135,0.00131941,97531.0,97530.0,2.01147911]
[1736087611336,0.00131941,97531.0,97530.0,2.01747911]
[1736087612523,0.00131941,97531.0,97530.0,2.04930733]
[1736087612739,0.00131941,97531.0,97530.0,2.14930733]
[1736087612952,0.00031941,97531.0,97530.0,2.13430733]
[1736087613152,0.00031941,97531.0,97530.0,2.14330733]
[1736087613357,0.00131941,97531.0,97530.0,2.14330733]
[1736087613653,0.00131941,97531.0,97530.0,2.14930733]
[1736087614152,0.00031941,97531.0,97530.0,2.13430733]
[1736087614375,0.15,97559.0,97558.0,0.07701479]
[1736087614531,0.184516,97553.0,97550.0,0.07701479]
[1736087614706,0.184516,97553.0,97551.0,0.00728]
[1736087615576,0.184516,97553.0,97545.0,0.07701479]
[1736087615767,0.0819,97552.0,97530.0,1.61198632]
[1736087615969,0.184554,97533.0,97532.0,0.07701479]
[1736087616167,0.184554,97533.0,97531.0,0.07701479]
[1736087616168,0.15,97532.0,97531.0,0.07701479]
[1736087616370,0.335556,97531.0,97530.0,1.517]
[1736087616578,0.417456,97531.0,97530.0,0.02428]
[1736087616794,0.417456,97531.0,97530.0,0.01628]
[1736087616997,0.416456,97531.0,97530.0,0.00728]
[1736087617566,0.416456,97531.0,97530.0,0.00828]
[1736087617815,0.416456,97531.0,97530.0,0.00728]
[1736087618211,0.421456,97531.0,97530.0,0.001]
[1736087618456,0.421456,97531.0,97530.0,0.00828]
[1736087619844,0.422456,97531.0,97530.0,0.00828]
[1736087620048,0.417456,97531.0,97530.0,0.00728]
[1736087620307,0.422456,97531.0,97530.0,0.00828]
[1736087620449,0.421456,97531.0,97530.0,0.00828]
[1736087620808,0.417456,97531.0,97530.0,0.00728]
[1736087621610,0.422456,97531.0,97530.0,0.00828]
[1736087621971,0.006,97531.0,97530.0,1.68928111]
[1736087622173,0.006,97531.0,97530.0,1.72119458]
[1736087622372,0.005,97531.0,97530.0,1.72119458]
[1736087623010,0.15,97535.0,97530.0,1.72019458]
[1736087623208,0.15,97535.0,97534.0,0.07701479]
[1736087623411,0.15,97535.0,97534.0,0.10892826]
[1736087623575,0.15,97535.0,97534.0,1.60892826]
[1736087624066,0.184545,97537.0,97534.0,1.60892826]
[1736087624271,0.184545,97537.0,97535.0,0.03191347]
[1736087624470,0.184545,97537.0,97536.0,0.03191347]
[1736087627355,0.187545,97537.0,97536.0,0.03191347]
[1736087627761,0.187545,97537.0,97536.0,1.53191347]
[1736087627983,0.184556,97531.0,97530.0,0.07701479]
[1736087628191,0.184556,97531.0,97530.0,0.11622981]
[1736087628392,0.184556,97531.0,97530.0,0.08429479]
[1736087628583,0.184556,97531.0,97530.0,0.11623258]
[1736087628742,0.184556,97531.0,97530.0,0.08429479]
[1736087630251,0.184556,97531.0,97530.0,0.11723435]
[1736087630473,0.184556,97531.0,97530.0,0.08529479]
[1736087631655,0.184556,97531.0,97530.0,1.58529479]
[1736087631848,0.185556,97531.0,97530.0,1.58529479]
[1736087632908,0.185556,97531.0,97530.0,1.58429479]
[1736087634151,0.335556,97531.0,97530.0,1.58429479]
[1736087634996,0.334556,97531.0,97530.0,1.58429479]
[1736087635192,0.334556,97531.0,97530.0,1.50728]
[1736087635412,0.34127507,97531.0,97530.0,1.50728]
[1736087635621,0.334556,97531.0,97530.0,1.50728]
[1736087635828,0.34127507,97531.0,97530.0,1.50728]
[1736087636042,0.34127507,97531.0,97530.0,1.5]
[1736087636255,0.34127507,97531.0,97530.0,1.50728]
[1736087636920,0.34127507,97531.0,97530.0,1.50828]
[1736087637263,0.3396126,97531.0,97530.0,1.50728]
[1736087637881,0.3406126,97531.0,97530.0,1.50728]
[1736087638077,0.3436126,97531.0,97530.0,1.5073654]
[1736087638492,0.3406126,97531.0,97530.0,0.0073654]
[1736087638693,0.3456126,97531.0,97530.0,0.0083654]
[1736087639118,0.3456126,97531.0,97530.0,1.5083654]
[1736087640795,0.3446126,97531.0,97530.0,1.5083654]
[1736087641211,0.3406126,97531.0,97530.0,1.5073654]
[1736087642012,0.3456126,97531.0,97530.0,1.5083654]
[1736087642428,0.3924126,97531.0,97530.0,1.5010854]
[1736087642635,0.3924126,97531.0,97530.0,0.0083654]
[1736087642971,0.40291123,97531.0,97530.0,0.0083654]
[1736087644213,0.3924126,97531.0,97530.0,0.0083654]
[1736087644449,0.3456126,97531.0,97530.0,0.0083654]
[1736087644857,0.3456126,97531.0,97530.0,1.5083654]
[1736087645277,0.3456126,97531.0,97530.0,1.58538019]
[1736087646498,0.3446126,97531.0,97530.0,1.58538019]
[1736087646928,0.3456126,97531.0,97530.0,1.58538019]
[1736087647145,0.0110566,97531.0,97530.0,1.68936651]
[1736087647555,0.006,97531.0,97530.0,1.68936651]
[1736087647732,0.001,97531.0,97530.0,1.68836651]
[1736087647957,0.006,97531.0,97530.0,1.68836651]
[1736087648174,0.005,97531.0,97530.0,1.68836651]
[1736087648377,0.1501708,97537.0,97530.0,1.68836651]
[1736087648562,0.1501708,97537.0,97531.0,0.10398632]
[1736087648781,0.00504342,97536.0,97531.0,0.10398632]
[1736087648933,0.00504342,97536.0,97535.0,1.5]
[1736087652161,0.334547,97536.0,97535.0,1.5]
[1736087652354,0.334547,97536.0,97535.0,0.00724]
[1736087652471,0.336547,97536.0,97535.0,0.00724]
[1736087653260,0.334547,97536.0,97535.0,0.00724]
[1736087653658,0.335547,97536.0,97535.0,0.00724]
[1736087653885,0.15,97535.0,97534.0,0.07701479]
[1736087654090,0.15,97535.0,97534.0,0.08425479]
[1736087654485,0.15,97535.0,97534.0,1.58425479]
[1736087654693,0.023,97532.0,97530.0,8.54e-05]
[1736087654893,0.023,97532.0,97531.0,0.00724]
[1736087656223,0.023,97532.0,97530.0,8.54e-05]
[1736087656224,0.357556,97531.0,97530.0,8.54e-05]
[1736087656447,0.53694232,97531.0,97530.0,8.54e-05]
[1736087656563,0.53694232,97531.0,97530.0,0.0073254]
[1736087657035,0.57659404,97531.0,97530.0,8.54e-05]
[1736087657236,0.53694232,97531.0,97530.0,8.54e-05]
[1736087658954,0.53894232,97531.0,97530.0,8.54e-05]
[1736087659309,0.54694232,97531.0,97530.0,0.0010854]
[1736087662803,0.54694232,97531.0,97530.0,0.0083254]
[1736087663490,0.54694232,97531.0,97530.0,1.5083254]
[1736087668727,1.05960232,97531.0,97530.0,1.5083254]
[1736087668939,1.10890232,97531.0,97530.0,0.0010854]
[1736087673304,0.955616,97531.0,97530.0,0.0010854]
[1736087675507,0.880216,97531.0,97530.0,0.0010854]
[1736087676497,0.857216,97531.0,97530.0,0.0010854]
[1736087676703,0.707216,97531.0,97530.0,0.0010854]
[1736087677378,0.707216,97531.0,97530.0,0.07810019]
[1736087677753,0.857216,97531.0,97530.0,0.07810019]
[1736087677952,0.857216,97531.0,97530.0,1.57810019]
[1736087678159,0.847216,97531.0,97530.0,1.57710019]
[1736087678617,0.855216,97531.0,97530.0,1.57810019]
[1736087678824,0.847216,97531.0,97530.0,1.57710019]
[1736087679033,0.849216,97531.0,97530.0,1.5000854]
[1736087679404,0.853216,97531.0,97530.0,1.5000854]
[1736087679998,0.849216,97531.0,97530.0,1.5000854]
[1736087680299,0.954116,97531.0,97530.0,0.0073254]
[1736087680730,0.952116,97531.0,97530.0,0.0073254]
[1736087681544,0.956116,97531.0,97530.0,0.0073254]
[1736087681717,0.953116,97531.0,97530.0,0.0073254]
[1736087682121,0.956116,97531.0,97530.0,0.0073254]
[1736087682528,0.958116,97531.0,97530.0,0.0073254]
[1736087682862,0.96825479,97531.0,97530.0,0.0073254]
[1736087684460,0.96825479,97531.0,97530.0,1.5073254]
[1736087684687,0.96625479,97531.0,97530.0,1.5073254]
[1736087684873,0.96725479,97531.0,97530.0,1.5073254]
[1736087686843,0.96742559,97531.0,97530.0,1.5073254]
[1736087687470,0.96742559,97531.0,97530.0,0.0073254]
[1736087687841,0.96742559,97531.0,97530.0,1.5073254]
[1736087688448,0.88552559,97531.0,97530.0,1.5073254]
[1736087689153,0.88552559,97531.0,97530.0,1.5000854]
[1736087689332,0.88552559,97531.0,97530.0,1.5073254]
[1736087690933,0.88552559,97531.0,97530.0,0.0073254]
[1736087691336,0.88552559,97531.0,97530.0,1.5073254]
[1736087699696,0.88552559,97531.0,97530.0,0.0073254]
[1736087700251,0.8523868,97531.0,97530.0,1.5073254]
[1736087703084,0.8523868,97531.0,97530.0,0.0073254]
[1736087705136,0.8523868,97531.0,97530.0,8.54e-05]
[1736087705480,0.8523868,97531.0,97530.0,0.0073254]
[1736087706863,0.8523868,97531.0,97530.0,8.54e-05]
[1736087707099,0.8523868,97531.0,97530.0,0.0073254]
[1736087709555,0.8523868,97531.0,97530.0,0.16434019]
[1736087709777,0.5178308,97531.0,97530.0,0.20974019]
[1736087710006,0.5178308,97531.0,97530.0,1.70974019]
[1736087710433,0.5128308,97531.0,97530.0,1.70974019]
[1736087710848,0.5178308,97531.0,97530.0,1.70974019]
[1736087711051,0.5138308,97531.0,97530.0,1.70974019]
[1736087712161,0.5138308,97531.0,97530.0,1.66434019]
[1736087712366,0.5128308,97531.0,97530.0,1.66434019]
[1736087712590,0.5158308,97531.0,97530.0,1.66434019]
[1736087712976,0.5128308,97531.0,97530.0,1.66434019]
[1736087713393,0.5148308,97531.0,97530.0,1.66434019]
[1736087715914,0.5128308,97531.0,97530.0,1.66434019]
[1736087716123,0.5138308,97531.0,97530.0,1.66534019]
[1736087717573,0.51374641,97531.0,97530.0,1.66534019]
[1736087718781,0.51374641,97531.0,97530.0,1.76932651]
[1736087722541,0.51374641,97531.0,97530.0,1.78951424]
[1736087723369,0.51374641,97531.0,97530.0,1.76932651]
[1736087725427,0.51374641,97531.0,97530.0,1.8013113]
[1736087725625,0.51374641,97531.0,97530.0,1.76932651]
[1736087725830,0.51374641,97531.0,97530.0,1.80130928]
[1736087729813,0.51374641,97531.0,97530.0,1.76932651]
[1736087730420,0.51374641,97531.0,97530.0,1.8013091]
[1736087731217,0.51374641,97531.0,97530.0,1.8013082]
[1736087731801,0.52760485,97531.0,97530.0,1.8013082]
[1736087732096,0.52760485,97531.0,97530.0,1.76932651]
[1736087732298,0.52760485,97531.0,97530.0,1.80131321]
[1736087732562,0.52760485,97531.0,97530.0,1.76932651]
[1736087732960,0.52760485,97531.0,97530.0,1.80131331]
[1736087733098,0.52760485,97531.0,97530.0,1.76932651]
[1736087733304,0.52760485,97531.0,97530.0,1.80131786]
[1736087736786,0.51374641,97531.0,97530.0,1.80131786]
[1736087737186,0.52528732,97531.0,97530.0,1.98487586]
[1736087737627,0.52528732,97531.0,97530.0,1.98887586]
[1736087737628,0.52428732,97531.0,97530.0,1.98887586]
[1736087738018,0.52428732,97531.0,97530.0,1.98487586]
[1736087738183,0.52528732,97531.0,97530.0,1.99187586]
[1736087738606,0.52528732,97531.0,97530.0,1.96488451]
[1736087739685,0.52528732,97531.0,97530.0,1.95988451]
[1736087739891,0.52428732,97531.0,97530.0,1.95288451]
[1736087740093,0.52428732,97531.0,97530.0,1.95888451]
[1736087740292,0.49863597,97531.0,97530.0,1.99087828]
[1736087740858,0.49963597,97531.0,97530.0,1.99387828]
[1736087741074,0.01145992,97531.0,97530.0,1.99987828]
[1736087741280,0.002431,97531.0,97530.0,1.99087828]
[1736087741490,0.002431,97531.0,97530.0,1.98487828]
[1736087742127,0.001,97531.0,97530.0,2.33376905]
[1736087742982,0.001,97531.0,97530.0,2.08594174]
[1736087743188,0.001,97531.0,97530.0,2.28594174]
[1736087743389,0.001,97531.0,97530.0,2.33164174]
[1736087743597,0.0001708,97532.0,97531.0,0.27701479]
[1736087743796,0.0001708,97532.0,97531.0,0.49299488]
[1736087744209,0.0001708,97532.0,97531.0,0.53869488]
[1736087744408,0.0001708,97532.0,97531.0,2.03869488]
[1736087744839,0.0011708,97532.0,97531.0,2.38743568]
[1736087745453,0.0001708,97532.0,97531.0,2.38443568]
[1736087746072,0.0001708,97532.0,97531.0,2.37843568]
[1736087747334,0.0001708,97532.0,97531.0,2.38743568]
[1736087747653,0.0001708,97532.0,97531.0,2.60862625]
[1736087748040,0.0001708,97532.0,97531.0,2.61462625]
[1736087748244,0.0001708,97532.0,97531.0,2.62362625]
[1736087749066,0.0001708,97532.0,97531.0,2.39343568]
[1736087751101,0.000171,97562.0,97561.0,0.07701479]
[1736087751315,0.00024721,97562.0,97561.0,0.18824111]
[1736087753050,0.00024721,97562.0,97561.0,0.28824111]
[1736087753262,0.00024721,97562.0,97561.0,0.33023028]
[1736087753465,0.00024721,97562.0,97561.0,0.41263028]
[1736087753676,0.00400001,97562.0,97561.0,1.91263028]
[1736087753872,1e-08,97562.0,97561.0,1.91263028]
[1736087754210,1e-08,97562.0,97561.0,1.91363028]
[1736087754926,1e-08,97562.0,97561.0,2.03221798]
[1736087755456,1e-08,97562.0,97561.0,2.02521798]
[1736087755834,1e-08,97562.0,97561.0,2.02921798]
[1736087756250,1.0773,97599.0,97593.0,0.07701479]
[1736087756467,1.0004,97599.0,97593.0,0.18824111]
[1736087756678,0.00877576,97594.0,97593.0,0.18824111]
[1736087756888,0.00066619,97594.0,97593.0,1.68824111]
[1736087757099,0.00871956,97594.0,97593.0,1.68824111]
[1736087757316,0.00066619,97594.0,97593.0,1.58425479]
[1736087757522,0.00879395,97594.0,97593.0,1.68824111]
[1736087757762,0.00066619,97594.0,97593.0,1.68824111]
[1736087757992,0.00879568,97594.0,97593.0,1.68824111]
[1736087758202,0.00322354,97594.0,97593.0,1.68824111]
[1736087758372,0.00879224,97594.0,97593.0,1.68824111]
[1736087758580,0.00322354,97594.0,97593.0,1.68824111]
[1736087758759,0.00322354,97594.0,97593.0,1.69124111]
[1736087758760,0.00879224,97594.0,97593.0,1.69124111]
[1736087758957,0.00322354,97594.0,97593.0,1.69124111]
[1736087759194,0.00879224,97594.0,97593.0,1.69124111]
[1736087759392,0.00322354,97594.0,97593.0,1.69324111]
[1736087759743,0.00322354,97594.0,97593.0,1.69024111]
[1736087760037,0.00880122,97594.0,97593.0,1.68824111]
[1736087760233,0.00322354,97594.0,97593.0,1.68824111]
[1736087760451,0.00577247,97594.0,97593.0,1.68824111]
[1736087761169,0.00577247,97594.0,97593.0,1.72006268]
[1736087761377,0.00577247,97594.0,97593.0,1.72406268]
[1736087761592,0.00577247,97594.0,97593.0,1.72382268]
[1736087761811,0.00577247,97594.0,97593.0,1.71282268]
[1736087762015,0.00577247,97594.0,97593.0,1.68824111]
[1736087762217,0.00577247,97594.0,97593.0,1.69924111]
[1736087762629,0.00577247,97594.0,97593.0,1.69524111]
[1736087762851,0.26710947,97594.0,97593.0,0.08401479]
[1736087763056,0.00577247,97594.0,97593.0,0.08825479]
[1736087763459,0.00577247,97594.0,97593.0,1.58825479]
[1736087763663,0.00577247,97594.0,97593.0,1.69824111]
[1736087765066,0.00577247,97594.0,97593.0,1.69224111]
[1736087765668,0.00577247,97594.0,97593.0,1.68824111]
[1736087765868,0.00577247,97594.0,97593.0,1.72003835]
[1736087766068,0.00577247,97594.0,97593.0,1.72303835]
[1736087766288,0.00577247,97594.0,97593.0,1.72903835]
[1736087766490,0.00577247,97594.0,97593.0,1.72603835]
[1736087766697,0.00577247,97594.0,97593.0,1.72003835]
[1736087766894,0.00577247,97594.0,97593.0,1.74421703]
[1736087767475,0.08267247,97594.0,97593.0,1.61281203]
[1736087767683,0.08267247,97594.0,97593.0,0.08825479]
[1736087767893,0.08267247,97594.0,97593.0,0.09525479]
[1736087768107,0.08267247,97594.0,97593.0,1.59525479]
[1736087768949,0.08267247,97594.0,97593.0,1.59125479]
[1736087769186,0.08267247,97594.0,97593.0,1.59525479]
[1736087769405,0.08267247,97594.0,97593.0,1.58825479]
[1736087769840,0.08267247,97594.0,97593.0,1.58425479]
[1736087770616,0.13087247,97594.0,97593.0,1.507]
[1736087770815,0.28087247,97594.0,97593.0,0.001]
[1736087771024,0.30387247,97594.0,97593.0,0.001]
[1736087771221,0.30387247,97594.0,97593.0,0.00924]
[1736087771922,0.30943806,97594.0,97593.0,0.00824]
[1736087773066,0.30943806,97594.0,97593.0,0.00724]
[1736087773878,0.31143806,97594.0,97593.0,0.00724]
[1736087774532,0.30943806,97594.0,97593.0,0.00724]
[1736087774920,0.31443806,97594.0,97593.0,1.50824]
[1736087775670,0.29143806,97594.0,97593.0,1.50824]
[1736087777953,0.29143806,97594.0,97593.0,0.00824]
[1736087778357,0.29143806,97594.0,97593.0,1.50824]
[1736087778717,0.01633806,97594.0,97593.0,1.58525479]
[1736087779973,0.01633806,97594.0,97593.0,1.68924111]
[1736087780563,0.01633806,97594.0,97593.0,1.72113958]
[1736087780766,0.01633806,97594.0,97593.0,1.68924111]
[1736087781373,0.01628406,97594.0,97593.0,1.58525479]
[1736087781701,0.01628406,97594.0,97593.0,0.08525479]
[1736087781902,0.08658406,97594.0,97593.0,0.00724]
[1736087782264,0.08858406,97594.0,97593.0,0.00724]
[1736087782674,0.08858406,97594.0,97589.0,0.0574]
[1736087782675,0.0468,97592.0,97589.0,0.0574]
[1736087782878,0.334443,97591.0,97590.0,0.00724]
[1736087783086,0.34259367,97591.0,97590.0,0.00724]
[1736087784921,0.34259367,97591.0,97590.0,0.08425479]
[1736087785350,0.34259367,97591.0,97590.0,1.58425479]
[1736087786106,0.34759367,97591.0,97590.0,1.58425479]
[1736087786551,0.34259367,97591.0,97590.0,1.58425479]
[1736087787059,0.34659367,97591.0,97590.0,1.58425479]
[1736087787473,0.34659367,97591.0,97590.0,1.50724]
[1736087788257,0.34659367,97591.0,97590.0,1.58425479]
[1736087788903,0.34259367,97591.0,97590.0,1.58425479]
[1736087789279,0.34659367,97591.0,97590.0,1.58425479]
[1736087789690,0.34259367,97591.0,97590.0,1.58425479]
[1736087790152,0.34659367,97591.0,97590.0,1.58425479]
[1736087791481,0.34659367,97591.0,97590.0,1.50724]
[1736087791885,0.34659367,97591.0,97590.0,1.58425479]
[1736087792314,0.34259367,97591.0,97590.0,1.58425479]
[1736087792602,0.34659367,97591.0,97590.0,1.58425479]
[1736087793558,0.34659367,97591.0,97590.0,1.50724]
[1736087794227,0.34659367,97591.0,97590.0,1.5]
[1736087794407,0.34659367,97591.0,97590.0,1.50724]
[1736087796411,0.34659367,97591.0,97590.0,1.58425479]
[1736087798481,0.01215067,97591.0,97590.0,1.58425479]
[1736087798903,0.004,97591.0,97590.0,1.58425479]
[1736087799350,0.00316954,97594.0,97590.0,1.58425479]
[1736087799529,0.004,97591.0,97590.0,1.58425479]
[1736087799682,0.19262967,97593.0,97592.0,0.07701479]
[1736087799909,0.00819067,97593.0,97592.0,0.18100111]
[1736087800918,0.00819067,97593.0,97592.0,1.68100111]
[1736087801260,0.00819067,97593.0,97592.0,1.71294635]
[1736087801667,0.00819067,97593.0,97592.0,1.68100111]
[1736087802480,0.00819067,97593.0,97592.0,1.71295754]
[1736087802680,0.00819067,97593.0,97592.0,1.63594275]
[1736087802887,0.00819067,97593.0,97592.0,1.60897122]
[1736087803091,0.00819067,97593.0,97592.0,0.08425479]
[1736087803324,0.00919067,97593.0,97592.0,0.08425479]
[1736087803567,0.00819067,97593.0,97592.0,0.08525479]
[1736087803791,0.00819067,97593.0,97592.0,1.58625479]
[1736087804002,0.00819067,97593.0,97592.0,1.58525479]
[1736087804433,0.01019067,97593.0,97592.0,1.58525479]
[1736087805057,0.01019067,97593.0,97592.0,1.58425479]
[1736087805263,0.01019067,97593.0,97592.0,1.61621175]
[1736087805466,0.01019067,97593.0,97592.0,1.58425479]
[1736087805672,0.01019067,97593.0,97592.0,1.68824111]
[1736087806076,0.01019067,97593.0,97592.0,1.69124111]
[1736087806276,0.01019067,97593.0,97592.0,1.72319641]
[1736087806519,0.00819067,97593.0,97592.0,1.69124111]
[1736087806707,0.00819067,97593.0,97592.0,1.68824111]
[1736087806920,0.00819067,97593.0,97592.0,1.95148211]
[1736087807136,0.00819067,97593.0,97592.0,1.98343335]
[1736087807382,0.00683115,97593.0,97592.0,1.98643335]
[1736087807788,0.00683115,97593.0,97592.0,1.98343335]
[1736087808173,0.00683115,97593.0,97592.0,1.98443335]
[1736087808379,0.00683115,97593.0,97592.0,1.98643335]
[1736087808790,0.00683115,97593.0,97592.0,1.98443335]
[1736087809151,0.00683115,97593.0,97592.0,1.98843335]
[1736087809553,0.00683115,97593.0,97592.0,1.98743335]
[1736087810178,0.00683115,97593.0,97592.0,1.99343335]
[1736087810790,0.00683115,97593.0,97592.0,1.98743335]
[1736087811432,0.00683115,97593.0,97592.0,1.98943335]
[1736087811640,0.00683115,97593.0,97592.0,1.98343335]
[1736087812088,0.00683115,97593.0,97592.0,1.98543335]
[1736087812500,0.00683115,97593.0,97592.0,1.98343335]
[1736087812886,0.00683115,97593.0,97592.0,1.98743335]
[1736087813306,0.00683115,97593.0,97592.0,1.99343335]
[1736087814061,0.00683115,97593.0,97592.0,1.98743335]
[1736087814261,0.00683115,97593.0,97592.0,1.99543335]
[1736087815017,0.00683115,97593.0,97592.0,1.99143335]
[1736087815402,0.00683115,97593.0,97592.0,1.99543335]
[1736087816373,0.00683115,97593.0,97592.0,1.99560395]
[1736087816607,0.00691645,97593.0,97592.0,1.99560395]
[1736087816980,0.00691645,97593.0,97592.0,2.03376395]
[1736087817182,0.00691645,97593.0,97592.0,2.04100395]
[1736087818814,0.00691645,97593.0,97592.0,2.14100395]
[1736087819429,0.00316954,97594.0,97593.0,0.17701479]
[1736087819652,0.00316954,97594.0,97593.0,0.31295235]
[1736087820065,0.00316954,97594.0,97593.0,1.81295235]
[1736087820270,0.00316954,97594.0,97593.0,1.91295235]
[1736087820696,0.00316954,97594.0,97593.0,1.91695235]
[1736087820966,0.00316954,97594.0,97593.0,2.3937384]
[1736087821656,0.00316954,97594.0,97593.0,2.4007384]
[1736087822432,0.00316954,97594.0,97593.0,2.49244022]
[1736087822897,0.00316954,97594.0,97593.0,2.39244022]
[1736087823046,1.0004,97599.0,97598.0,0.1]
[1736087823254,1.00054853,97599.0,97598.0,0.23593756]
[1736087823671,1.00054853,97599.0,97598.0,0.21295235]
[1736087824514,1.00054853,97599.0,97598.0,0.22019235]
[1736087824710,1.00054853,97599.0,97598.0,0.22519235]
[1736087825702,1.00054853,97599.0,97598.0,0.19324111]
[1736087825933,1.00054853,97599.0,97598.0,0.19624111]
[1736087826332,1.00054853,97599.0,97598.0,0.22815198]
[1736087826722,1.00054853,97599.0,97598.0,1.72515198]
[1736087826959,1.00499361,97599.0,97598.0,1.72515198]
[1736087827151,1.00499361,97599.0,97598.0,1.72615198]
[1736087830111,1.00499361,97599.0,97598.0,1.69424111]
[1736087830313,1.00499361,97599.0,97598.0,1.72517992]
[1736087830520,1.00499361,97599.0,97598.0,1.72017992]
[1736087830767,1.00499361,97599.0,97598.0,1.72717992]
[1736087832170,1.00499361,97599.0,97598.0,1.72517992]
[1736087832569,1.00499361,97599.0,97598.0,1.72817992]
[1736087834875,1.00499361,97599.0,97598.0,1.80557992]
[1736087838345,1.00499361,97599.0,97598.0,1.86297992]
[1736087840489,1.00499361,97599.0,97598.0,1.96297992]
[1736087840700,1.00499361,97599.0,97598.0,2.06297992]
[1736087841043,0.9280941,97599.0,97598.0,2.06297992]
[1736087841710,0.9280941,97599.0,97598.0,2.40246912]
[1736087841926,0.9280941,97599.0,97598.0,2.21782912]
[1736087842132,0.9280941,97599.0,97598.0,2.22506912]
[1736087842384,0.9280941,97599.0,97598.0,2.32506912]
[1736087844795,0.9281794,97599.0,97598.0,2.32506912]
[1736087852749,0.9281794,97599.0,97598.0,2.50129781]
[1736087853789,0.9281794,97599.0,97598.0,2.22506912]
[1736087853993,0.9281794,97599.0,97598.0,2.12506912]
[1736087854197,0.9281794,97599.0,97598.0,2.11782912]
[1736087854399,0.9281794,97599.0,97598.0,2.12506912]
[1736087856277,0.9281794,97599.0,97598.0,1.92376986]
[1736087857314,0.9281794,97599.0,97598.0,1.96980459]
[1736087858160,0.9281794,97599.0,97598.0,2.12567131]
[1736087863670,0.9281794,97599.0,97598.0,2.11843131]
[1736087863875,1.0520794,97599.0,97598.0,2.02168499]
[1736087864554,1.0520794,97599.0,97598.0,1.77374998]
[1736087865180,1.0520794,97599.0,97598.0,1.76650998]
[1736087865370,1.0520794,97599.0,97598.0,1.77374998]
[1736087865801,1.0520794,97599.0,97598.0,1.64965479]
[1736087866205,1.0520794,97599.0,97598.0,1.68164609]
[1736087867003,1.0520794,97599.0,97598.0,1.64965479]
[1736087870202,1.0520794,97599.0,97598.0,1.59225479]
[1736087870447,1.0520794,97599.0,97598.0,1.59242559]